Workbook

Sheet 6R UI
C8: Type your name: | E8: Name of analysis: | I8: Model: | K8: Transmission:
I9: 6215R | K9: PowrQuad
I10: =INDEX(model_6_w,MATCH(I9,model_6,0)) -> 0 | K10: =INDEX(IF(M47="S",tran_6S_w,IF(M47="M",tran_6M_w,tran_6L_w)),MATCH(K9,tran_6,0)) -> 0
I11: =INDEX(model_6_s,MATCH(I9,model_6,0)) -> 0.38 | K11: =INDEX(IF(M47="S",tran_6S_s,IF(M47="M",tran_6M_s,tran_6L_s)),MATCH(K9,tran_6,0)) -> 0.375
C13: Front axle: | E13: Front hitch: | G13: Front PTO: | I13: Loader ready: | K13: Fuel level:
C14: MFWD | E14: Not Included | G14: Not Included | I14: No | K14: Half
C15: =INDEX(IF(M47="S",FA_6S_w,IF(M47="M",FA_6M_w,FA_6L_w)),MATCH(C14,FA_6,0)) -> 6700 | E15: =INDEX(hitch_6_w,MATCH(E14,hitch_6,0)) -> 0 | G15: =INDEX(PTO_6_w,MATCH(G14,PTO_6,0)) -> 0 | I15: =INDEX(IF(M47="S",loader_6S_w,loader_6M_w),MATCH(I14,loader_6,0)) -> 0 | K15: =INDEX(IF(M47="S",fuel_6S_w,IF(M47="M",fuel_6M_w,fuel_6L_w)),MATCH(K14,fuel_6,0)) -> 151.1
C16: =INDEX(IF(M47="S",FA_6S_s,IF(M47="M",FA_6M_s,FA_6L_s)),MATCH(C14,FA_6,0)) -> 0.375 | E16: =INDEX(IF(M47="S",hitch_6S_s,IF(M47="M",hitch_6M_s,hitch_6L_s)),MATCH(E14,hitch_6,0)) -> 1.225 | G16: =INDEX(IF(M47="S",PTO_6S_s,IF(M47="M",PTO_6M_s,PTO_6L_s)),MATCH(G14,PTO_6,0)) -> 1 | I16: =INDEX(IF(M47="S",loader_6S_s,IF(M47="M",loader_6M_s,loader_6L_s)),MATCH(I14,loader_6,0)) -> 0.6942857143 | K16: =INDEX(IF(M47="S",fuel_6S_s,IF(M47="M",fuel_6M_s,fuel_6L_s)),MATCH(K14,fuel_6,0)) -> 0.2678571429
E18: Front wheels & tires | I18: Rear wheels & tires
E19: Group 42 | I19: Group 47
E20: Single: | I20: Single: | K20: Dual:
E21: 420/90R30 | I21: 480/80R46 | K21: None
E22: =IF(M47="S",INDEX(FTires_6S_w,MATCH(E21,FTires_6S,0)),IF(M47="L", INDEX(FTires_6L_w,MATCH(E21,FTires_6L,0)),IF(I9="6145R",INDEX(FTires_6145_w,MATCH(E21,FTires_6145,0)),IF(I9="6155R",INDEX(FTires_6155_w,MATCH(E21,FTires_6155,0)),0)))) -> 371 | I22: =IF(M47="S",INDEX(RTires_6S_w,MATCH(I21,RTires_6S,0)),IF(M47="L", INDEX(RTires_6L_w,MATCH(I21,RTires_6L,0)),IF(I9="6145R",INDEX(RTires_6145_w,MATCH(I21,RTires_6145,0)),IF(I9="6155R",INDEX(RTires_6155_w,MATCH(I21,RTires_6155,0)),0)))) -> 786.4 | K22: =IF(M47="S",INDEX(Rduals_6S_w,MATCH(K21,Rduals_6S,0)),IF(M47="L", INDEX(Rduals_6L_w,MATCH(K21,Rduals_6L,0)),IF(I9="6145R",INDEX(Rduals_6145_w,MATCH(K21,Rduals_6145,0)),IF(I9="6155R",INDEX(Rduals_6155_w,MATCH(K21,Rduals_6155,0)),0)))) -> 0
E23: 1 | I23: 0 | K23: 0
C25: Front ballast | G25: Rear wheel weights
C26: Weight support: | E26: Suitcase weights: | G26: 55 kg: | I26: 72 kg: | K26: 205 kg:
C27: Not Included | E27: None | G27: None | I27: None | K27: None
C28: =INDEX(FWS_6_w,MATCH(C27,FWS_6,0)) -> 0 | E28: =INDEX(SW_6_w,MATCH(E27,SW_6,0)) -> 0 | G28: =INDEX(w72_6_w,MATCH(G27,w72_6,0)) -> 0 | I28: =INDEX(w72_6_w,MATCH(I27,w72_6,0)) -> 0 | K28: =INDEX(w205_6_w,MATCH(K27,w205_6,0)) -> 0
C29: =INDEX(IF(M47="S",FWS_6S_s,IF(M47="M",FWS_6M_s,FWS_6L_s)),MATCH(C27,FWS_6,0)) -> 1.265178571 | E29: =INDEX(IF(M47="S",SW_6S_s,IF(M47="M",SW_6M_s,SW_6L_s)),MATCH(E27,SW_6,0)) -> 1.365714286 | G29: 0 | I29: 0 | K29: 0
C31: Enter any additional ballast (kg)
C32: Front support: | E32: Front axle: | G32: Side mount: | I32: Rear Axle: | K32: Rear hitch:
C33: 0 | E33: 0 | G33: 0 | I33: 0 | K33: 0
C34: =C33 -> 0 | E34: =E33 -> 0 | G34: =G33 -> 0 | I34: =I33 -> 0 | K34: =K33 -> 0
C35: 1.35 | E35: 1 | G35: 0.6 | I35: 0 | K35: -0.355
C38: Total weight: | E38: =C47& " kg "&ROUND(C47*2.20462,0)& " lb" -> 8009 kg 17657 lb
C39: Weight / PTO-hp (SAE): | E39: =ROUND(C47/K47,0)& " kg/PTO-hp "& ROUND((C47*2.20462)/K47,0) &" lb/PTO-hp" -> 46 kg/PTO-hp 100 lb/PTO-hp
C40: Weight / Engine power: | E40: =ROUND(C47/I47,0)& " kg/hp "& ROUND((C47*2.20462)/I47,0) &" lb/hp" -> 37 kg/hp 82 lb/hp
C41: Front axle weight: | E41: =E47&" kg "&ROUND(E47*2.20462,0)& " lb" -> 2924 kg 6446 lb
C42: Rear axle weight: | E42: =C47-E47&" kg "&ROUND((C47-E47)*2.20462,0)& " lb" -> 5085 kg 11210 lb | G42: =G47 -> 0.365 | I42: =100%-G42 -> 0.635 | K42: =TODAY() -> 2015-10-12
C46: Total weight (kg) | E46: Front axle (kg) | G46: Front split (%) | I46: HP | K46: PTO HP | M46: Frame Size
C47: =ROUND(SUM(I10,K10,C15,E15,G15,I15,K15,E22,I22,K22,C28,E28,G28,I28,K28,C34,E34,G34,I34,K34),0) -> 8009 | E47: =ROUND(SUM(I10*I11,K10*K11,C15*C16,E15*E16,G15*G16,I15*I16,K15*K16,E22*E23,I22*I23,K22*K23,C28*C29,E28*E29,G28*G29,I28*I29,K28*K29,C34*C35,E34*E35,G34*G35,I34*I35,K34*K35),0) -> 2924 | G47: =ROUND(E47/C47,3) -> 0.365 | I47: =INDEX(hp_6,MATCH(I9,model_6,0)) -> 215 | K47: =INDEX(PTOhp_6,MATCH(I9,model_6,0)) -> 176 | M47: =INDEX(frame_6,MATCH(I9,model_6,0)) -> L

Sheet 6R Option Weights (hidden)
G3: Wheelbase (mm)
A4: Model | B4: kg total | C4: % front axle | D4: hp | E4: PTO-hp | F4: Frame size | G4: 2WD | H4: MFWD/TLS | M4: kg total | N4: % front axle | O4: No split data provided by Christian
A5: 6110R | B5: 0 | C5: 0.38 | D5: 110 | E5: 86 | F5: S | G5: 2580 | H5: 2580 | M5: 4481.5 | N5: 0.4
A6: 6120R | B6: 0 | C6: 0.38 | D6: 120 | E6: 94 | F6: S | G6: 2580 | H6: 2580 | M6: 4481.5 | N6: 0.4
A7: 6130R | B7: 0 | C7: 0.38 | D7: 130 | E7: 101 | F7: S | G7: 2580 | H7: 2580 | M7: 4481.5 | N7: 0.4
A8: 6145R | B8: 0 | C8: 0.38 | D8: 145 | E8: 111 | F8: M | G8: 2985 | H8: 2765 | I8: using MFWD/TLS wheelbase | M8: 5531.5 | N8: 0.4
A9: 6155R | B9: 0 | C9: 0.38 | D9: 155 | E9: 121 | F9: M | G9: 2985 | H9: 2765 | I9: 2WD is < 2% take rate | M9: 5531.5 | N9: 0.4
A10: 6175R | B10: 0 | C10: 0.38 | D10: 175 | E10: 140 | F10: L | H10: 2800 | M10: 5981.5 | N10: 0.4
A11: 6195R | B11: 0 | C11: 0.38 | D11: 195 | E11: 158 | F11: L | H11: 2800 | M11: 5981.5 | N11: 0.4
A12: 6215R | B12: 0 | C12: 0.38 | D12: 215 | E12: 176 | F12: L | H12: 2800 | M12: 5981.5 | N12: 0.4
B15: Small | D15: Mid | F15: Large
B16: kg total | C16: % front axle | D16: kg total | E16: % front axle | F16: kg total | G16: % front axle | H16: notes /compatibility
A17: Transmission
A18: PowrQuad | B18: 0 | C18: 0.38 | D18: 0 | E18: 0.38 | F18: 0 | G18: 0.375
A19: AutoQuad | B19: 0 | C19: 0.38 | D19: 0 | E19: 0.38 | F19: 0 | G19: 0.375
A20: IVT | B20: 600 | C20: 0.38 | D20: 350 | E20: 0.38 | F20: 350 | G20: 0.375
A21: DirectDrive | B21: 0 | C21: 0.38 | D21: 300 | E21: 0.38 | F21: 300 | G21: 0.375
A23: Front Axle
A24: 2WD | B24: 3890 | C24: 0.34 | D24: 5390 | E24: 0.33
A25: MFWD | B25: 4400 | C25: 0.38 | D25: 6000 | E25: 0.38 | F25: 6700 | G25: 0.375
A26: TLS | B26: 4470 | C26: 0.38 | D26: 6050 | E26: 0.38 | F26: 6770 | G26: 0.375 | H26: offered with or without front brakes
A27: TLS w/ front brakes | B27: 4500 | C27: 0.38 | D27: 6083 | E27: 0.38 | F27: 6800 | G27: 0.375
A29: Front 3-Point Hitch | C29: Small % | D29: Mid % | E29: Large % | P29: mm from FA
A30: Not Included | B30: 0 | C30: =($H$5+630)/$H$5 -> 1.244186047 | D30: =($H$8+630)/$H$8 -> 1.227848101 | E30: =($H$10+630)/$H$10 -> 1.225 | H30: Front hitch not compatible with 2WD | N30: Cat. 3 | O30: 213 | P30: 630
A31: Economy | B31: 213 | C31: =($H$5+630)/$H$5 -> 1.244186047 | D31: =($H$8+630)/$H$8 -> 1.227848101 | E31: =($H$10+630)/$H$10 -> 1.225 | H31: Check for weight difference between economy and premium options | N31: Premium | O31: 220 | P31: 630
A32: Premium | B32: 220 | C32: =($H$5+630)/$H$5 -> 1.244186047 | D32: =($H$8+630)/$H$8 -> 1.227848101 | E32: =($H$10+630)/$H$10 -> 1.225 | N32: confirm these include front SCVs, etc
N33: why is this distance (630 mm) not different from mid and large frame like the suitcase weights?
A34: Front PTO | C34: Small % | D34: Mid % | E34: Large %
A35: Not Included | B35: 0 | C35: 1 | D35: 1 | E35: 1 | H35: small also offers aux drive prep | P35: mm from FA
A36: Included | B36: 65 | C36: =($H$5+574)/$H$5 -> 1.22248062 | D36: =($H$8+574)/$H$8 -> 1.207594937 | E36: =($H$10+574)/$H$10 -> 1.205 | O36: 65 | P36: 574
A38: Fuel level | H38: Diesel + DEF
A39: Empty | B39: 0 | C39: =750/$H$5 -> 0.2906976744 | D39: 0 | E39: =750/$H$8 -> 0.2712477396 | F39: 0 | G39: =750/$H$10 -> 0.2678571429 | H39: Small: 220 L diesel at .85kg/L + 13 L DEF at 1.085 kg/L | N39: 750mm distance estimated by engineering for Christian (to rear axle)
A40: Half | B40: =B41*0.5 -> 100.5525 | C40: =750/$H$5 -> 0.2906976744 | D40: =D41*0.5 -> 129.805 | E40: =750/$H$8 -> 0.2712477396 | F40: =F41*0.5 -> 151.1 | G40: =750/$H$10 -> 0.2678571429 | H40: Mid: 285 L diesel at .85kg/L + 16 L DEF at 1.085 kg/L
A41: Full | B41: =220*(0.85)+13*(1.085) -> 201.105 | C41: 0.2906976744 | D41: =285*(0.85)+16*(1.085) -> 259.61 | E41: =750/$H$8 -> 0.2712477396 | F41: =330*(0.85)+20*(1.085) -> 302.2 | G41: 0.2678571429 | H41: Large: 330 L diesel at .85kg/L + 20 L DEF at 1.085 kg/L
A43: Front Weight Support | C43: Small % | D43: Mid % | E43: Large %
A44: Not Included | B44: 0 | C44: =($H$5+640)/$H$5 -> 1.248062016 | D44: =($H$8+742.5)/$H$8 -> 1.268535262 | E44: =($H$10+742.5)/$H$10 -> 1.265178571 | G44: Code 8951, Front base weight - 110kg | O44: mm from FA
A45: Included | B45: 110 | C45: =($H$5+640)/$H$5 -> 1.248062016 | D45: =($H$8+742.5)/$H$8 -> 1.268535262 | E45: =($H$10+742.5)/$H$10 -> 1.265178571 | G45: Not in combination with front hitch or front PTO | O45: S | P45: M-L
N46: FWS + 0… | O46: 640 | P46: 742.5
A47: Front Suitcase Weights | C47: Small % | D47: Mid % | E47: Large % | N47: 8 | O47: 860 | P47: 962.5
A48: None | B48: 0 | C48: =($H$5+936)/$H$5 -> 1.362790698 | D48: =($H$8+1024)/$H$8 -> 1.37034358 | E48: =($H$10+1024)/$H$10 -> 1.365714286 | N48: 10 | O48: 860 | P48: 962.5
A49: 8 | B49: =43*A49 -> 344 | C49: =($H$5+936)/$H$5 -> 1.362790698 | D49: =($H$8+1024)/$H$8 -> 1.37034358 | E49: =($H$10+1024)/$H$10 -> 1.365714286 | G49: code 8957, 400kg | N49: 12 | O49: 860 | P49: 962.5
A50: 10 | B50: =43*A50 -> 430 | C50: =($H$5+936)/$H$5 -> 1.362790698 | D50: =($H$8+1024)/$H$8 -> 1.37034358 | E50: =($H$10+1024)/$H$10 -> 1.365714286 | G50: code 8958, 500kg | N50: 14 | O50: 860 | P50: 962.5
A51: 12 | B51: 516 | C51: 1.362790698 | D51: =($H$8+1024)/$H$8 -> 1.37034358 | E51: =($H$10+1024)/$H$10 -> 1.365714286 | G51: code 8959, 600kg | N51: 16 | O51: 879 | P51: 981.5
A52: 14 | B52: 602 | C52: 1.362790698 | D52: 1.37034358 | E52: 1.365714286 | G52: code 8960, 700kg | N52: 18 | O52: 879 | P52: 981.5
A53: 16 | B53: 688 | C53: 1.362790698 | D53: 1.37034358 | E53: 1.365714286 | G53: code 8961, 800kg | I53: Why isn't code 8961 on configurator? (6155R) | O53: 936 | P53: 1024 | Q53: << average mm when removing impact of FWS
A54: 18 | B54: =43*A54 -> 774 | C54: 1.362790698 | D54: 1.37034358 | E54: 1.365714286 | G54: code 8962, 900kg | I54: Description on config: Add 2881 Lb. Front, Subtract 774 Lb. Rear.
A56: Rear Wheel Weights
A57: 55 kg
A58: None | B58: 0 | C58: 0
A59: One pair | B59: 110 | C59: 0
A60: 72 kg
A61: None | B61: 0 | C61: 0 | D61: Mid and large only
A62: One pair | B62: 144 | C62: 0
A63: 205 kg
A64: None | B64: 0 | C64: 0 | D64: Mid and large only
A65: One pair | B65: 410 | C65: 0
A66: Two pairs | B66: =B65*2 -> 820 | C66: 0
I67: distance to rear axle
A68: Loader ready | B68: Small | C68: Small % | D68: M/L | E68: Mid % | F68: Large % | H68: 324 | I68: 1789
A69: No | B69: 0 | C69: =1789/$H$5 -> 0.6934108527 | D69: 0 | E69: =1909/$H$8 -> 0.6904159132 | F69: =1944/$H$10 -> 0.6942857143 | H69: 426.5 | I69: 1908.9
A70: Yes | B70: 324 | C70: =1789/$H$5 -> 0.6934108527 | D70: 426.5 | E70: =1909/$H$8 -> 0.6904159132 | F70: =1944/$H$10 -> 0.6942857143 | H70: 426.5 | I70: 1943.9

Sheet 6R Wheels (hidden)
B2: 6110-6130R | E2: 6145R | H2: 6155R | K2: 6175-6215R | N2: *not provided by Christian, using estimates
A3: FRONT
B4: Front singles | E4: Front singles | H4: Front singles | K4: Front singles
B5: 10.00-16 (2WD) | C5: 112 | E5: 11.00-16 (2WD) | F5: 120 | H5: 11.00-16 (2WD) | I5: 120 | K5: 16.9R30 (420/90R30) | L5: 371
B6: 11L-15 (2WD) | C6: 112 | E6: 11.00-20 (2WD) | F6: 128 | H6: 11.00-20 (2WD) | I6: 128 | K6: 320/85R38 | L6: =INDEX(fronttires_w,MATCH(K6,fronttires,0)) -> 391
B7: 13.6-38 (Bias) | C7: 365.6 | E7: 14L-16.1 (2WD) | F7: 140 | H7: 14L-16.1 (2WD) | I7: 140 | K7: 380/80R38 | L7: 380
B8: 270/80R36 | C8: 275 | E8: 16.9R26 | F8: 260 | H8: 16.9R28 (420/85R28) | I8: 324.6 | K8: 380/85R34 | L8: 368
B9: 270/95R32 | C9: 275 | E9: 16.9R28 (420/85R28) | F9: 324.6 | H9: 16.9R30 (420/90R30) | I9: 371 | K9: 420/85R34 | L9: 415
B10: 320/85R24 | C10: =INDEX(fronttires_w,MATCH(B10,fronttires,0)) -> 185.6 | E10: 270/80R36 | F10: 275 | H10: 270/95R38 | I10: 325 | K10: 420/90R30 | L10: 371
B11: 320/85R28 | C11: =INDEX(fronttires_w,MATCH(B11,fronttires,0)) -> 217.6 | E11: 270/95R32 | F11: 275 | H11: 320/85R34 | I11: =INDEX(fronttires_w,MATCH(H11,fronttires,0)) -> 317 | K11: 480/70R30 | L11: 370.6
B12: 340/85R24 | C12: =INDEX(fronttires_w,MATCH(B12,fronttires,0)) -> 196.8 | E12: 270/95R38 | F12: 325 | H12: 320/85R38 | I12: =INDEX(fronttires_w,MATCH(H12,fronttires,0)) -> 391 | K12: 480/70R34 | L12: 456.8
B13: 340/85R28 | C13: =INDEX(fronttires_w,MATCH(B13,fronttires,0)) -> 244 | E13: 320/85R34 | F13: =INDEX(fronttires_w,MATCH(E13,fronttires,0)) -> 317 | H13: 380/80R38 | I13: =INDEX(fronttires_w,MATCH(H13,fronttires,0)) -> 380 | K13: 600/65R28 | L13: 456.8
B14: 340/85R38 | C14: 325 | E14: 380/85R28 | F14: =INDEX(fronttires_w,MATCH(E14,fronttires,0)) -> 268.6 | H14: 380/85R30 | I14: 309.5
B15: 380/85R24 | C15: =INDEX(fronttires_w,MATCH(B15,fronttires,0)) -> 229.6 | E15: 380/85R30 | F15: 309.5 | H15: 380/85R34 | I15: =INDEX(fronttires_w,MATCH(H15,fronttires,0)) -> 368
B16: 400/80R24 - special profile | C16: 244.8 | E16: 420/85R24 | F16: =INDEX(fronttires_w,MATCH(E16,fronttires,0)) -> 282.4 | H16: 420/85R28 | I16: 325
B17: 420/70R24 | C17: =INDEX(fronttires_w,MATCH(B17,fronttires,0)) -> 245.8 | E17: 420/85R28 | F17: 324.6 | H17: 420/85R34 | I17: =INDEX(fronttires_w,MATCH(H17,fronttires,0)) -> 415
B18: 420/85R24 | C18: =INDEX(fronttires_w,MATCH(B18,fronttires,0)) -> 282.4 | E18: 440/80R24 - special profile | F18: 244.8 | H18: 420/90R30 | I18: 371
B19: 440/80R24 - special profile | C19: 298 | E19: 480/70R24 | F19: =INDEX(fronttires_w,MATCH(E19,fronttires,0)) -> 300.4 | H19: 480/70R30 | I19: 370.6
B20: 480/70R24 | C20: =INDEX(fronttires_w,MATCH(B20,fronttires,0)) -> 300.4 | E20: 540/65R24 | F20: =INDEX(fronttires_w,MATCH(E20,fronttires,0)) -> 311.6 | H20: 480/70R34 | I20: 456.8
B21: 540/65R24 | C21: =INDEX(fronttires_w,MATCH(B21,fronttires,0)) -> 311.6 | E21: 540/65R28 | F21: =INDEX(fronttires_w,MATCH(E21,fronttires,0)) -> 362.5 | H21: 540/65R28 | I21: 362.5
H22: 600/65R28 | I22: 456.8
A26: REAR
B27: Singles | E27: Singles | H27: Singles | K27: Singles
B28: 13.6-46 -R2 | C28: =INDEX(reartires_w,MATCH(B28,reartires,0)) -> 456 | E28: 14.9R46 | F28: =INDEX(reartires_w,MATCH(E28,reartires,0)) -> 528 | H28: 14.9R46 | I28: =INDEX(reartires_w,MATCH(H28,reartires,0)) -> 528 | K28: 18.4R46 (480/80R46) | L28: 786.4
B29: 270/95R48 | C29: 450 | E29: 18.4R42 (480/80R42) | F29: 748.2 | H29: 18.4R42 (480/80R42) | I29: 748.2 | K29: 320/90R54 | L29: =INDEX(reartires_w,MATCH(K29,reartires,0)) -> 664
B30: 300/95R46 | C30: 500 | E30: 270/95R48 | F30: 450 | H30: 18.4R46 (480/80R46) | I30: 786.4 | K30: 380/90R50 | L30: 650
B31: 320/90R42 | C31: =INDEX(reartires_w,MATCH(B31,reartires,0)) -> 462 | E31: 300/95R46 | F31: 500 | H31: 300/95R52 | I31: 600 | K31: 380/90R54 | L31: 700
B32: 340/85R48 | C32: 500 | E32: 300/95R52 | F32: 600 | H32: 320/90R50 | I32: =INDEX(reartires_w,MATCH(H32,reartires,0)) -> 600 | K32: 480/80R46 | L32: =INDEX(reartires_w,MATCH(K32,reartires,0)) -> 786.4
B33: 380/90R46 | C33: 575 | E33: 320/90R50 | F33: =INDEX(reartires_w,MATCH(E33,reartires,0)) -> 600 | H33: 320/90R54 | I33: =INDEX(reartires_w,MATCH(H33,reartires,0)) -> 664 | K33: 480/80R50 | L33: 870
B34: 420/85R30 (16.9R30) | C34: =INDEX(reartires_w,MATCH(B34,reartires,0)) -> 349.4 | E34: 380/90R46 | F34: 575 | H34: 380/90R50 | I34: 650 | K34: 520/85R42 | L34: 750
B35: 420/85R34 | C35: 415 | E35: 420/80R46 | F35: 732.6 | H35: 420/80R46 | I35: 732.6 | K35: 520/85R46 | L35: 880.8
B36: 420/85R38 | C36: 464.8 | E36: 460/85R38 (18.4R38) | F36: =INDEX(reartires_w,MATCH(E36,reartires,0)) -> 553 | H36: 480/80R42 | I36: =INDEX(reartires_w,MATCH(H36,reartires,0)) -> 748.2 | K36: 620/70R42 | L36: 894.6
B37: 460/85R30 (18.4R30) | C37: 384.6 | E37: 480/80R38 | F37: =INDEX(reartires_w,MATCH(E37,reartires,0)) -> 556.8 | H37: 480/80R46 | I37: 786.4 | K37: 650/85R38 | L37: 1002
B38: 460/85R34 | C38: 468 | E38: 480/80R38 - special profile | F38: 556.8 | H38: 480/80R50 | I38: 870 | K38: 710/70R38 | L38: 991.4
B39: 460/85R38 (18.4R38) | C39: 553 | E39: 480/80R42 | F39: =INDEX(reartires_w,MATCH(E39,reartires,0)) -> 748.2 | H39: 520/85R38 | I39: 623.8 | K39: 710/70R42 | L39: 1077.6
B40: 480/70R38 | C40: 530.4 | E40: 520/70R38 | F40: =INDEX(reartires_w,MATCH(E40,reartires,0)) -> 568.6 | H40: 520/85R42 | I40: 750 | K40: Duals
B41: 480/80R34 - special profile | C41: 476 | E41: 520/85R38 | F41: =INDEX(reartires_w,MATCH(E41,reartires,0)) -> 623.8 | H41: 620/70R42 | I41: 894.6 | K41: None | L41: 0
B42: 480/80R38 - special profile | C42: 556.8 | E42: 600/65R38 | F42: =INDEX(reartires_w,MATCH(E42,reartires,0)) -> 623.2 | H42: 650/65R38 | I42: 740.2 | K42: 18.4R46 (480/80R46) | L42: =L28-F53 -> 736.4
B43: 520/70R34 | C43: =INDEX(reartires_w,MATCH(B43,reartires,0)) -> 501 | E43: 650/65R38 | F43: =INDEX(reartires_w,MATCH(E43,reartires,0)) -> 740.2 | H43: 650/85R38 | I43: 1002 | K43: 320/90R54 | L43: =L29-F53 -> 614
B44: 520/70R38 | C44: =INDEX(reartires_w,MATCH(B44,reartires,0)) -> 568.6 | E44: Duals | H44: 710/70R38 | I44: 991.4 | K44: 380/90R50 | L44: =L30-F53 -> 600
B45: 600/65R38 | C45: =INDEX(reartires_w,MATCH(B45,reartires,0)) -> 623.2 | E45: None | F45: 0 | H45: 710/70R42 | I45: 1077.6 | K45: 380/90R54 | L45: =L31-F53 -> 650
B46: Duals | E46: 14.9R46 | F46: =F28-F53 -> 478 | H46: Duals | K46: 480/80R46 | L46: =L32-F53 -> 736.4
B47: None | C47: 0 | E47: 320/90R50 | F47: =F33-F53 -> 550 | H47: None | I47: 0 | K47: 480/80R50 | L47: =L33-F53 -> 820
E48: 420/80R46 | F48: =F35-F53 -> 682.6 | H48: 14.9R46 | I48: =I30-F53 -> 736.4 | K48: 520/85R42 | L48: =L34-F53 -> 700
E49: 480/80R38 | F49: =F37-F53 -> 506.8 | H49: 18.4R46 (480/80R46) | I49: =I30-F53 -> 736.4 | K49: 620/70R42 | L49: =L36-F53 -> 844.6
E50: 480/80R42 | F50: =F39-F53 -> 698.2 | H50: 320/90R50 | I50: =I36-F53 -> 698.2 | K50: 710/70R38 | L50: =L38-F53 -> 941.4
H51: 320/90R54 | I51: =I33-F53 -> 614
E52: Dual data not provided | H52: 380/90R50 | I52: =I34-F53 -> 600
E53: Reduction for steel dual estimate: | F53: 50 | H53: 420/80R46 | I53: =I35-F53 -> 682.6
H54: 480/80R42 | I54: =I36-F53 -> 698.2
H55: 480/80R46 | I55: =I37-F53 -> 736.4
H56: 480/80R50 | I56: =I38-F53 -> 820
H57: 520/85R42 | I57: =I40-F53 -> 700
H58: 620/70R42 | I58: =I41-F53 -> 844.6
H59: 710/70R38 | I59: =I44-F53 -> 941.4
B63: Data provided by Christian Koetter from R2 shown below
B65: REAR | E65: FRONT
B66: 13.6-46 -R2 | C66: 456 | E66: 10.00-16 | F66: 112
A67: single/dual | B67: 14.9R46 | C67: 528 | E67: 11.00-16 | F67: 120
B68: 320/90R42 | C68: 462 | E68: 11.00-20 | F68: 128
A69: single/dual | B69: 320/90R50 | C69: 600 | E69: 11L-15 In. 8PR F3 Bias | F69: 112
A70: single/dual | B70: 320/90R54 | C70: 664 | E70: 13.6-38 | F70: 365.6
B71: 380/80R38 | C71: 380 | E71: 14L-16.1 | F71: 140
A72: single/dual | B72: 420/80R46 (18.4R42 In. 151A8 R1 Radial) | C72: 732.6 | E72: 16.9R26 | F72: 260
B73: 420/85R30 (16.9R30) | C73: 349.4 | E73: 320/85R24 | F73: 185.6
B74: 420/85R34 | C74: 415 | E74: 320/85R28 | F74: 217.6
B75: 420/85R38 | C75: 464.8 | E75: 320/85R34 | F75: 317
B76: 460/85R30 (18.4R30) | C76: 384.6 | E76: 320/85R38 | F76: 391
B77: 460/85R34 | C77: 468 | E77: 320/90R46 | F77: 576
B78: 460/85R38 (18.4R38) | C78: 553 | E78: 320/90R50 | F78: 600
B79: 480/70R34 | C79: 456.8 | E79: 340/85R24 | F79: 196.8
B80: 480/70R38 | C80: 530.4 | E80: 340/85R28 | F80: 244
B81: 480/80R34 | C81: 476 | E81: 380/70R24 | F81: 221.2
A82: single/dual | B82: 480/80R38 | C82: 556.8 | E82: 380/70R28 | F82: 249.6
A83: single/dual | B83: 480/80R42 | C83: 748.2 | E83: 380/80R38 | F83: 380
A84: single/dual | B84: 480/80R46 | C84: 786.4 | E84: 380/85R24 | F84: 229.6
A85: single/dual | B85: 480/80R50 | C85: 870 | E85: 380/85R28 | F85: 268.6
B86: 520/70R34 | C86: 501 | E86: 380/85R30 (14.9R30 In. 135A8 R1 Radial) | F86: 309.5
B87: 520/70R38 | C87: 568.6 | E87: 380/85R34 | F87: 368
B88: 520/85R38 | C88: 623.8 | E88: 400/80R24 | F88: 244.8
A89: single/dual | B89: 520/85R42 | C89: 750 | E89: 400/80R28 | F89: 290
B90: 520/85R46 | C90: 880.8 | E90: 420/70R24 | F90: 245.8
E91: 420/70R28 | F91: 281.6
B92: 540/65R34 | C92: 460 | E92: 420/85R24 | F92: 282.4
B93: 540/65R38 | C93: 509 | E93: 420/85R28 (16.9R28) | F93: 324.6
B94: 540/80R38 | C94: 606 | E94: 420/85R30 | F94: 349.4
B95: 580/70R38 | C95: 646.4 | E95: 420/85R34 | F95: 415
B96: 580/70R42 | C96: 780 | E96: 420/90R30 | F96: 371
B97: 600/65R38 | C97: 623.2 | E97: 440/65R24 | F97: 259.4
A98: single/dual | B98: 620/70R42 | C98: 894.6 | E98: 440/80R24 | F98: 298
B99: 650/60R38 VF | C99: 792 | E99: 440/80R28 | F99: 336
B100: 650/65R38 | C100: 740.2 | E100: 460/85R30 | F100: 384.6
B101: 650/65R42 | C101: 854.4 | E101: 480/65R24 | F101: 280.4
B102: 650/75R38 | C102: 1006.6 | E102: 480/65R28 | F102: 315.4
B103: 650/75R42 | C103: 1072 | E103: 480/70R24 | F103: 300.4
B104: 650/85R38 | C104: 1002 | E104: 480/70R28 | F104: 337
B105: 710/60R38 VF | C105: 840 | E105: 480/70R30 | F105: 370.6
B106: 710/60R42 VF | C106: 944 | E106: 480/70R34 | F106: 456.8
A107: single/dual | B107: 710/70R38 | C107: 991.4 | E107: 520/60R28 VF | F107: 370
B108: 710/70R42 | C108: 1077.6 | E108: 540/65R24 | F108: 311.6
E109: 540/65R28 | F109: 362.5
E110: 540/65R30 | F110: 393.4
E111: 600/60R28 VF | F111: 458
E112: 600/60R30 VF | F112: 502
E113: 600/65R28 | F113: 456.8
E114: 600/65R30 | F114: 511.4
E115: 600/70R28 | F115: 505.2

Sheet Base Weights condensed (hidden)
C2: PowerQuad & AutoQuad | G2: IVT | J2: DirectDrive
C3: 2WD | D3: MFWD | E3: TLS | F3: TLS w/ front brakes | G3: MFWD | H3: TLS | I3: TLS w/ front brakes | J3: MFWD | K3: TLS | L3: TLS w/ front brakes
A4: 6110-130R | B4: kg | D4: 4398.9 | G4: 5034.103272 | H4: 5204 | I4: 4981.103272
B5: % FA | D5: 0.4016635977 | G5: 0.3654718953 | I5: 0.4060729524
A6: 6145-155R | B6: kg | C6: 5389.565792 | D6: 6456.38928 | I6: 6432.995496
B7: % FA | C7: 0.3269424967 | D7: 0.3906234266 | I7: 0.3788887192
A8: 6175-215R | B8: kg | D8: 6703.466308 | F8: 6780.591696 | H8: 7085.382024 | I8: 7176.38971 | J8: 7096.100332 | K8: 6949.028656
B9: % FA | D9: 0.3691356218 | F9: 0.3812358018 | H9: 0.3748452807 | I9: 0.3820436896 | J9: 0.3729982236 | K9: 0.3697887275
A12: *weights should be taken with base configurations for each model, excluding: wheels/tires, ballast, fuel | O12: = no data available | P12: << estimating
O13: = not offered
C14: Base equipment
C15: 6110R | D15: flanged 8 position rear axle, Cat 2/3N 4755 lb (2157 kg) rear hitch, Cat 2 1400 kg drawbar, 1-3/8 in 540/1000 rear PTO
C16: 6120R | D16: flanged 8 position rear axle, Cat 2/3N 5582 lb (2532 kg) rear hitch, Cat 2 1400 kg drawbar, 1-3/8 in 540/1000 rear PTO
C17: 6130R | D17: flanged 8 position rear axle, Cat 2/3N 6475 lb (2937 kg) rear hitch, Cat 2 1400 kg drawbar, 1-3/8 in 540/1000 rear PTO
C18: 6145R | D18: 92 x 2550 mm rear axle, Cat 3/3N 9193 lb (4170 kg) rear hitch, Cat 2 1400 kg drawbar, 1-3/8 in 540/1000 rear PTO
C19: 6155R | D19: 92 x 2550 mm rear axle, Cat 3/3N 9193 lb (4170 kg) rear hitch, Cat 2 1400 kg drawbar, 1-3/8 in 540/1000 rear PTO
C20: 6175R | D20: 100 x 2550 mm rear axle, Cat 3/3N 10690 lb (4850 kg) rear hitch, Cat 3 1600 kg drawbar, 1-3/8 in 540/1000 rear PTO
C21: 6195R | D21: 100 x 2550 mm rear axle, Cat 3/3N 10690 lb (4850 kg) rear hitch, Cat 3 1600 kg drawbar, 1-3/8 in 540/1000 rear PTO
C22: 6215R | D22: 100 x 2550 mm rear axle, Cat 3/3N 11990 lb (5440 kg) rear hitch, Cat 3 1600 kg drawbar, 1-3/8 in 540/1000 rear PTO

Sheet Base Weights (hidden)
C2: PowerQuad | G2: AutoQuad | K2: IVT | N2: DirectDrive
C3: 2WD | D3: MFWD | E3: TLS | F3: TLS w/ front brakes | G3: 2WD | H3: MFWD | I3: TLS | J3: TLS w/ front brakes | K3: MFWD | L3: TLS | M3: TLS w/ front brakes | N3: MFWD | O3: TLS | P3: TLS w/ front brakes
A4: 6110R | B4: kg
B5: % FA
A6: 6120R | B6: kg
B7: % FA
A8: 6130R | B8: kg
B9: % FA
A10: 6145R | B10: kg
B11: % FA
A12: 6155R | B12: kg
B13: % FA
A14: 6175R | B14: kg
B15: % FA
A16: 6195R | B16: kg
B17: % FA
A18: 6215R | B18: kg
B19: % FA
A21: *weights should be taken with base configurations for each model, excluding: wheels/tires, ballast, fuel
C23: Base equipment
C24: 6110R | D24: flanged 8 position rear axle, Cat 2/3N 4755 lb (2157 kg) rear hitch, Cat 2 1400 kg drawbar, 1-3/8 in 540/1000 rear PTO
C25: 6120R | D25: flanged 8 position rear axle, Cat 2/3N 5582 lb (2532 kg) rear hitch, Cat 2 1400 kg drawbar, 1-3/8 in 540/1000 rear PTO
C26: 6130R | D26: flanged 8 position rear axle, Cat 2/3N 6475 lb (2937 kg) rear hitch, Cat 2 1400 kg drawbar, 1-3/8 in 540/1000 rear PTO
C27: 6145R | D27: 92 x 2550 mm rear axle, Cat 3/3N 9193 lb (4170 kg) rear hitch, Cat 2 1400 kg drawbar, 1-3/8 in 540/1000 rear PTO
C28: 6155R | D28: 92 x 2550 mm rear axle, Cat 3/3N 9193 lb (4170 kg) rear hitch, Cat 2 1400 kg drawbar, 1-3/8 in 540/1000 rear PTO
C29: 6175R | D29: 100 x 2550 mm rear axle, Cat 3/3N 10690 lb (4850 kg) rear hitch, Cat 3 1600 kg drawbar, 1-3/8 in 540/1000 rear PTO
C30: 6195R | D30: 100 x 2550 mm rear axle, Cat 3/3N 10690 lb (4850 kg) rear hitch, Cat 3 1600 kg drawbar, 1-3/8 in 540/1000 rear PTO
C31: 6215R | D31: 100 x 2550 mm rear axle, Cat 3/3N 11990 lb (5440 kg) rear hitch, Cat 3 1600 kg drawbar, 1-3/8 in 540/1000 rear PTO

Sheet Recommendations (hidden)
C3: 6145R-6215R
C4: Light | D4: Medium | E4: Heavy
C5: 8.7 km/h (5.4 mph) and faster | D5: 7.2-8.7 km/h (4.5-5.4 mph) | E5: 7.2 km/h (4.5 mph) and slower
B6: kg/hp | C6: 46 | D6: 50 | E6: 56
B7: lb/hp | C7: 100 | D7: 110 | E7: 125
